fUST/lending_fUST_20240117
["ID","MTS","AMOUNT","RATE_DAILY","PERIOD"]
[311877418,1705485039672,-500.0,0.00021917,2]
[311877420,1705485039681,-509.07,0.00021917,2]
[311877422,1705485039690,-500.0,0.00021917,2]
[311877424,1705485039699,-500.0,0.00021917,2]
[311877426,1705485039708,-500.0,0.00021917,2]
[311877428,1705485039718,-543.29,0.00021917,2]
[311877431,1705485039728,-252.51760587,0.00021917,2]
[311877433,1705485039738,-31925.53,0.00021917,2]
[311877435,1705485039747,-500.0,0.00021917,2]
[311877437,1705485039756,-6023.82,0.00021917,2]
[311877439,1705485039765,-500.0,0.00021917,2]
[311877441,1705485039774,-500.0,0.00021917,2]
[311877443,1705485039783,-500.0,0.00021917,2]
[311877445,1705485039792,-500.0,0.00021917,2]
[311877446,1705485039801,-815.96,0.00021917,2]
[311877448,1705485039811,-500.0,0.00021917,2]
[311877450,1705485039822,-906.59,0.00021917,2]
[311877452,1705485039832,-500.0,0.00021917,2]
[311877455,1705485039843,-500.0,0.00021917,2]
[311877456,1705485039853,-500.0,0.00021917,2]
[311877458,1705485039864,-500.0,0.00021917,2]
[311877460,1705485039875,-500.0,0.00021917,2]
[311877462,1705485039885,-500.0,0.00021917,2]
[311877465,1705485039895,-17270.7,0.00021917,2]
[311877467,1705485039905,-500.0,0.00021917,2]
[311877471,1705485039914,-500.0,0.00021917,2]
[311877474,1705485039924,-2817.83,0.00021917,2]
[311877477,1705485039933,-500.0,0.00021917,2]
[311877478,1705485039942,-500.0,0.00021917,2]
[311877480,1705485039951,-2814.25,0.00021917,2]
[311877482,1705485039960,-500.0,0.00021917,2]
[311877485,1705485039970,-500.0,0.00021917,2]
[311877487,1705485039979,-500.0,0.00021917,2]
[311877488,1705485039988,-500.0,0.00021917,2]
[311877490,1705485039997,-2147.25,0.00021917,2]
[311877493,1705485040006,-500.0,0.00021917,2]
[311877494,1705485040015,-500.0,0.00021917,2]
[311877497,1705485040025,-1609.78,0.00021917,2]
[311877499,1705485040034,-500.0,0.00021917,2]
[311877501,1705485040043,-500.0,0.00021917,2]
[311877503,1705485040052,-501.3034891,0.00021917,2]
[311877505,1705485040061,-7434.55,0.00021917,2]
[311877507,1705485040070,-500.0,0.00021917,2]
[311877509,1705485040079,-500.0,0.00021917,2]
[311877511,1705485040089,-500.0,0.00021917,2]
[311877513,1705485040098,-500.0,0.00021917,2]
[311877515,1705485040107,-878.72,0.00021917,2]
[311877517,1705485040116,-1000.0,0.00021917,2]
[311877519,1705485040125,-500.0,0.00021917,2]
[311877521,1705485040134,-500.0,0.00021917,2]
[311877523,1705485040143,-201.40168416,0.00021917,2]
[311877525,1705485040152,-500.0,0.00021917,2]
[311877527,1705485040161,-935.18,0.00021917,2]
[311877529,1705485040171,-500.0,0.00021917,2]
[311877531,1705485040180,-500.0,0.00021917,2]
[311877533,1705485040189,-1146.15,0.00021917,2]
[311877535,1705485040198,-500.0,0.00021917,2]
[311877537,1705485040207,-500.0,0.00021917,2]
[311877538,1705485040216,-500.0,0.00021917,2]
[311877541,1705485040226,-500.0,0.00021917,2]
[311877543,1705485040235,-500.0,0.00021917,2]
[311877545,1705485040245,-502.14501577,0.00021917,2]
[311877547,1705485040254,-502.16920952,0.00021917,2]
[311877549,1705485040264,-500.0,0.00021917,5]
[311877551,1705485040273,-1687.05,0.00021917,2]
[311877553,1705485040282,-500.0,0.00021917,2]
[311877554,1705485040291,-1362.08,0.00021917,2]
[311877556,1705485040301,-500.0,0.00021917,2]
[311877559,1705485040312,-849.36,0.00021917,2]
[311877561,1705485040321,-503.73641132,0.00021917,2]
[311877562,1705485040330,-500.0,0.00021917,2]
[311877564,1705485040339,-500.79749771,0.00021917,2]
[311877566,1705485040348,-500.0,0.00021917,2]
[311877568,1705485040357,-500.0,0.00021917,2]
[311877570,1705485040366,-261.31076788,0.00021917,2]
[311877572,1705485040376,-500.0,0.00021917,2]
[311877574,1705485040385,-500.0,0.00021917,2]
[311877576,1705485040395,-500.0,0.00021917,2]
[311877578,1705485040404,-380.81535745,0.00021917,2]
[311877580,1705485040414,-1883.47,0.00021917,2]
[311877583,1705485040427,-7245.67,0.00021917,2]
[311877585,1705485040437,-500.0,0.00021917,2]
[311877587,1705485040445,-500.0,0.00021917,2]
[311877589,1705485040454,-504.17724233,0.00021917,2]
[311877591,1705485040463,-1325.06,0.00021917,2]
[311877593,1705485040472,-9421.15,0.00021917,2]
[311877594,1705485040481,-500.0,0.00021917,2]
[311877596,1705485040490,-500.0,0.00021917,2]
[311877598,1705485040500,-166.666666,0.00021918,2]
[311877600,1705485040509,-153.0,0.00021918,2]
[311877601,1705485040518,-500.0,0.00021999,2]
[311877602,1705485040527,-374.76193364,0.00022,2]
[311877603,1705485040536,-293.1976279,0.00022,4]
[311877604,1705485040546,-157.08440165,0.00022,2]
[311877605,1705485040555,-153.0,0.00022,2]
[311877606,1705485040565,-3955.54830897,0.00022,2]
[311877607,1705485040574,-425.53656097,0.00022,2]
[311877608,1705485040583,-154.6139369,0.00022,2]
[311877609,1705485040593,-153.0,0.00022,2]
[311877610,1705485040602,-153.0,0.00022,2]
[311877611,1705485040612,-153.0,0.00022,2]
[311877612,1705485040621,-153.0,0.00022,2]
[311877613,1705485040631,-500.0,0.00022052,2]
[311877614,1705485040640,-500.0,0.00022053,2]
[311877615,1705485040649,-500.0,0.00022053,2]
[311877616,1705485040659,-500.0,0.00022053,2]
[311877617,1705485040670,-551.41,0.00022054,2]
[311877618,1705485040679,-500.0,0.00022054,2]
[311877620,1705485040688,-500.0,0.00022054,2]
[311877622,1705485040697,-408.30555975,0.00022054,2]
[311877624,1705485040709,-500.0,0.00022054,2]
[311877626,1705485040718,-500.0,0.00022054,2]
[311877628,1705485040727,-500.0,0.00022054,2]
[311877630,1705485040737,-708.1,0.00022054,2]
[311877632,1705485040746,-385.46353208,0.00022054,2]
[311877634,1705485040755,-500.0,0.00022054,2]
[311877642,1705485040832,-500.0,0.00022054,2]
[311877644,1705485040842,-500.0,0.00022054,2]
[311877646,1705485040851,-500.0,0.00022054,2]
[311877648,1705485040864,-155.0,0.00022054,2]
[311877650,1705485040874,-200.0,0.00022054,2]
[311877652,1705485040883,-500.0,0.00022054,2]
[311877654,1705485040892,-500.0,0.00022054,2]
[311877656,1705485040902,-780.54,0.00022054,2]
[311877658,1705485040911,-601.37,0.00022054,2]
[311877659,1705485040922,-604.88,0.00022054,2]
[311877661,1705485040931,-500.0,0.00022054,2]
[311877663,1705485040942,-500.0,0.00022054,2]
[311877665,1705485040953,-500.0,0.00022054,2]
[311877667,1705485040962,-547.01,0.00022054,2]
[311877669,1705485040971,-500.0,0.00022054,2]
[311877671,1705485040980,-500.0,0.00022054,2]
[311877673,1705485040990,-575.28227044,0.00022054,2]
[311877675,1705485041000,-500.0,0.00022054,2]
[311877677,1705485041009,-500.0,0.00022054,2]
[311877679,1705485041019,-500.0,0.00022054,2]
[311877681,1705485041028,-742.7,0.00022054,2]
[311877683,1705485041037,-500.0,0.00022054,2]
[311877685,1705485041046,-500.0,0.00022054,2]
[311877687,1705485041055,-500.0,0.00022054,2]
[311877689,1705485041065,-1017.67,0.00022054,2]
[311877691,1705485041074,-500.0,0.00022054,2]
[311877693,1705485041083,-500.0,0.00022054,2]
[311877694,1705485041093,-500.0,0.00022054,2]
[311877696,1705485041102,-500.0,0.00022054,2]
[311877698,1705485041111,-1548.02,0.00022054,2]
[311877700,1705485041121,-500.0,0.00022054,2]
[311877702,1705485041131,-328.04093624,0.00022054,2]
[311877704,1705485041140,-500.0,0.00022054,2]
[311877706,1705485041149,-364.85779853,0.00022054,2]
[311877708,1705485041159,-500.0,0.00022054,2]
[311877710,1705485041169,-500.0,0.00022054,2]
[311877712,1705485041178,-500.0,0.00022054,2]
[311877714,1705485041187,-500.0,0.00022054,2]
[311877716,1705485041197,-500.0,0.00022054,2]
[311877718,1705485041206,-1152.55,0.00022054,2]
[311877720,1705485041214,-500.0,0.00022054,2]
[311877722,1705485041224,-500.0,0.00022054,2]
[311877724,1705485041233,-539.81,0.00022054,2]
[311877726,1705485041242,-500.0,0.00022054,2]
[311877728,1705485041252,-500.0,0.00022054,2]
[311877730,1705485041261,-500.0,0.00022054,2]
[311877731,1705485041270,-876.73,0.00022054,2]
[311877733,1705485041280,-500.0,0.00022054,2]
[311877735,1705485041289,-500.0,0.00022054,2]
[311877737,1705485041298,-325.42261473,0.00022054,2]
[311877739,1705485041308,-500.0,0.00022054,2]
[311877741,1705485041317,-500.0,0.00022054,2]
[311877742,1705485041326,-363.32405101,0.00022054,2]
[311877744,1705485041335,-500.0,0.00022054,2]
[311877746,1705485041345,-500.0,0.00022054,2]
[311877748,1705485041355,-500.0,0.00022054,2]
[311877750,1705485041364,-500.0,0.00022054,2]
[311877752,1705485041373,-500.0,0.00022054,2]
[311877754,1705485041383,-500.0,0.00022054,2]
[311877756,1705485041392,-500.0,0.00022054,2]
[311877758,1705485041401,-500.0,0.00022054,2]
[311877759,1705485041409,-222.61017779,0.00022054,2]
[311877761,1705485041419,-1762.09,0.00022054,2]
[311877763,1705485041429,-470.46759968,0.00022054,2]
[311877765,1705485041438,-500.0,0.00022054,2]
[311877767,1705485041447,-500.0,0.00022054,2]
[311877769,1705485041456,-500.0,0.00022054,2]
[311877771,1705485041465,-540.7180897,0.00022054,2]
[311877773,1705485041474,-2445.38,0.00022054,2]
[311877774,1705485041483,-455.57136527,0.00022054,2]
[311877776,1705485041492,-559.19,0.00022054,2]
[311877778,1705485041502,-500.0,0.00022054,2]
[311877780,1705485041511,-500.0,0.00022054,2]
[311877782,1705485041520,-500.0,0.00022054,2]
[311877784,1705485041529,-434.48775725,0.00022054,2]
[311877786,1705485041538,-388.70818294,0.00022054,2]
[311877788,1705485041547,-500.0,0.00022054,2]
[311877790,1705485041556,-500.0,0.00022054,2]
[311877792,1705485041565,-3760.8,0.00022054,2]
[311877794,1705485041573,-528.42,0.00022054,2]
[311877795,1705485041582,-500.0,0.00022054,2]
[311877797,1705485041591,-500.0,0.00022054,2]
[311877799,1705485041601,-500.0,0.00022054,2]
[311877801,1705485041610,-500.0,0.00022054,2]
[311877803,1705485041619,-500.0,0.00022054,2]
[311877805,1705485041628,-971.68,0.00022054,2]
[311877807,1705485041637,-500.0,0.00022054,2]
[311877809,1705485041646,-500.0,0.00022054,2]
[311877811,1705485041655,-656.24,0.00022054,2]
[311877813,1705485041664,-500.0,0.00022054,2]
[311877815,1705485041678,-500.0,0.00022054,2]
[311877817,1705485041687,-500.0,0.00022054,2]
[311877819,1705485041696,-742.68,0.00022054,2]
[311877821,1705485041705,-500.0,0.00022054,2]
[311877823,1705485041713,-500.0,0.00022054,2]
[311877824,1705485041722,-500.0,0.00022054,2]
[311877826,1705485041731,-500.0,0.00022054,2]
[311877828,1705485041740,-2057.23,0.00022054,2]
[311877830,1705485041749,-505.24,0.00022054,2]
[311877832,1705485041758,-500.0,0.00022054,2]
[311877834,1705485041767,-500.0,0.00022054,2]
[311877836,1705485041776,-1833.31,0.00022054,2]
[311877837,1705485041785,-500.0,0.00022054,2]
[311877839,1705485041794,-541.56,0.00022054,2]
[311877841,1705485041803,-3243.09,0.00022054,2]
[311877843,1705485041812,-500.0,0.00022054,2]
[311877845,1705485041821,-500.0,0.00022054,2]
[311877847,1705485041830,-500.0,0.00022054,2]
[311877849,1705485041839,-863.96,0.00022054,2]
[311877851,1705485041848,-500.0,0.00022054,2]
[311877853,1705485041857,-2826.75,0.00022054,2]
[311877855,1705485041865,-451.30321561,0.00022054,2]
[311877856,1705485041877,-357.88867272,0.00022054,2]
[311877858,1705485041887,-505.04589673,0.00022054,2]
[311877860,1705485041896,-500.0,0.00022054,2]
[311877862,1705485041906,-500.0,0.00022054,2]
[311877864,1705485041916,-500.0,0.00022054,2]
[311877866,1705485041926,-500.0,0.00022054,2]
[311877868,1705485041935,-500.0,0.00022054,2]
[311877870,1705485041945,-500.0,0.00022054,2]
[311877872,1705485041954,-509.07,0.00022054,2]
[311877874,1705485041963,-500.0,0.00022054,2]
[311877876,1705485041972,-500.0,0.00022054,2]
[311877877,1705485041981,-500.0,0.00022054,2]
[311877879,1705485041990,-543.29,0.00022054,2]
[311877881,1705485041999,-31925.53,0.00022054,2]
[311877883,1705485042008,-6023.82,0.00022054,2]
[311877885,1705485042017,-500.0,0.00022054,2]
[311877887,1705485042026,-500.0,0.00022054,2]
[311877889,1705485042035,-500.0,0.00022054,2]
[311877891,1705485042044,-500.0,0.00022054,2]
[311877893,1705485042053,-815.96,0.00022054,2]
[311877895,1705485042062,-500.0,0.00022054,2]
[311877896,1705485042071,-906.59,0.00022054,2]
[311877898,1705485042080,-500.0,0.00022054,2]
[311877900,1705485042089,-500.0,0.00022054,2]
[311877902,1705485042099,-500.0,0.00022054,2]
[311877904,1705485042108,-500.0,0.00022054,2]
[311877906,1705485042117,-500.0,0.00022054,2]
[311877908,1705485042127,-17270.7,0.00022054,2]
[311877910,1705485042136,-500.0,0.00022054,2]
[311877912,1705485042145,-2817.83,0.00022054,2]
[311877913,1705485042154,-500.0,0.00022054,2]
[311877915,1705485042164,-2814.25,0.00022054,2]
[311877917,1705485042174,-500.0,0.00022054,2]
[311877919,1705485042184,-500.0,0.00022054,2]
[311877921,1705485042193,-500.0,0.00022054,2]
[311877923,1705485042202,-2147.25,0.00022054,2]
[311877925,1705485042210,-500.0,0.00022054,2]
[311877927,1705485042219,-500.0,0.00022054,2]
[311877929,1705485042228,-1609.78,0.00022054,2]
[311877931,1705485042237,-500.0,0.00022054,2]
[311877934,1705485042245,-500.0,0.00022054,2]
[311877935,1705485042255,-7434.55,0.00022054,2]
[311877938,1705485042264,-500.0,0.00022054,2]
[311877941,1705485042273,-500.0,0.00022054,2]
[311877944,1705485042282,-507.15349144,0.00022054,2]
[311877947,1705485042292,-500.0,0.00022054,2]
[311877950,1705485042301,-878.72,0.00022054,2]
[311877952,1705485042310,-500.0,0.00022054,2]
[311877954,1705485042319,-1068.65134143,0.00022054,2]
[311877962,1705485042391,-500.0,0.00022054,2]
[311877964,1705485042401,-500.0,0.00022054,2]
[311877966,1705485042410,-935.18,0.00022054,2]
[311877968,1705485042419,-500.0,0.00022054,2]
[311877970,1705485042428,-500.0,0.00022054,2]
[311877972,1705485042436,-1146.15,0.00022054,2]
[311877974,1705485042446,-500.0,0.00022054,2]
[311877976,1705485042454,-500.0,0.00022054,2]
[311877978,1705485042463,-1687.05,0.00022054,2]
[311877980,1705485042472,-500.0,0.00022054,2]
[311877982,1705485042481,-1362.08,0.00022054,2]
[311877984,1705485042490,-500.0,0.00022054,2]
[311877985,1705485042499,-849.36,0.00022054,2]
[311877987,1705485042508,-500.0,0.00022054,2]
[311877989,1705485042517,-500.0,0.00022054,2]
[311877991,1705485042527,-500.0,0.00022054,2]
[311877993,1705485042535,-500.0,0.00022054,2]
[311877995,1705485042545,-500.0,0.00022054,2]
[311877997,1705485042554,-1883.47,0.00022054,2]
[311877999,1705485042562,-7245.67,0.00022054,2]
[311878001,1705485042571,-500.0,0.00022054,2]
[311878003,1705485042580,-500.0,0.00022054,2]
[311878005,1705485042589,-1325.06,0.00022054,2]
[311878007,1705485042598,-9421.15,0.00022054,2]
[311878009,1705485042607,-505.14162514,0.00022054,2]
[311878011,1705485042616,-500.0,0.0002209,2]
[311878013,1705485042625,-153.0,0.000221,2]
[311878015,1705485042634,-153.0,0.000221,2]
[311878017,1705485042643,-153.0,0.000221,2]
[311878019,1705485042652,-500.0,0.00022191,2]
[311878021,1705485042665,-500.0,0.00022191,2]
[311878023,1705485042675,-500.0,0.00022191,2]
[311878025,1705485042684,-551.41,0.00022191,2]
[311878027,1705485042693,-500.0,0.00022191,2]
[311878029,1705485042702,-500.0,0.00022191,2]
[311878030,1705485042711,-500.0,0.00022191,2]
[311878032,1705485042720,-500.0,0.00022191,2]
[311878034,1705485042729,-500.0,0.00022191,2]
[311878036,1705485042738,-708.1,0.00022191,2]
[311878038,1705485042747,-500.0,0.00022191,2]
[311878040,1705485042756,-500.0,0.00022191,2]
[311878042,1705485042765,-500.0,0.00022191,2]
[311878044,1705485042774,-500.0,0.00022191,2]
[311878046,1705485042783,-587.34476944,0.00022191,2]
[311878047,1705485042792,-500.0,0.00022191,2]
[311878049,1705485042801,-780.54,0.00022191,2]
[311878050,1705485042810,-601.37,0.00022191,2]
[311878052,1705485042819,-604.88,0.00022191,2]
[311878054,1705485042828,-500.0,0.00022191,2]
[311878056,1705485042839,-500.0,0.00022191,2]
[311878058,1705485042848,-547.01,0.00022191,2]
[311878060,1705485042858,-500.0,0.00022191,2]
[311878062,1705485042870,-500.0,0.00022191,2]
[311878064,1705485042879,-500.0,0.00022191,2]
[311878066,1705485042888,-500.0,0.00022191,2]
[311878068,1705485042897,-500.0,0.00022191,2]
[311878069,1705485042907,-742.7,0.00022191,2]
[311878071,1705485042916,-500.0,0.00022191,2]
[311878073,1705485042926,-500.0,0.00022191,2]
[311878075,1705485042935,-500.0,0.00022191,2]
[311878077,1705485042945,-1017.67,0.00022191,2]
[311878079,1705485042955,-646.32186224,0.00022191,2]
[311878081,1705485042964,-500.0,0.00022191,2]
[311878083,1705485042974,-500.0,0.00022191,2]
[311878085,1705485042983,-500.0,0.00022191,2]
[311878087,1705485042991,-1548.02,0.00022191,2]
[311878088,1705485043001,-500.0,0.00022191,2]
[311878090,1705485043010,-500.0,0.00022191,2]
[311878092,1705485043020,-327.43482098,0.00022191,2]
[311878094,1705485043028,-500.0,0.00022191,2]
[311878096,1705485043037,-506.80923371,0.00022191,2]
[311878098,1705485043046,-500.0,0.00022191,2]
[311878100,1705485043055,-500.0,0.00022191,2]
[311878102,1705485043064,-1152.55,0.00022191,2]
[311878104,1705485043073,-523.68136719,0.00022191,2]
[311878106,1705485043082,-500.0,0.00022191,2]
[311878107,1705485043091,-539.81,0.00022191,2]
[311878108,1705485043100,-535.84483329,0.00022191,2]
[311878109,1705485043109,-500.0,0.00022191,2]
[311878110,1705485043122,-500.0,0.00022191,2]
[311878111,1705485043131,-876.73,0.00022191,2]
[311878112,1705485043140,-500.0,0.00022191,2]
[311878113,1705485043149,-401.25528764,0.00022191,2]
[311878114,1705485043157,-500.0,0.00022191,2]
[311878115,1705485043166,-500.0,0.00022191,2]
[311878116,1705485043176,-500.0,0.00022191,2]
[311878117,1705485043185,-500.0,0.00022191,2]
[311878118,1705485043193,-500.0,0.00022191,2]
[311878119,1705485043202,-500.0,0.00022191,2]
[311878120,1705485043211,-500.0,0.00022191,2]
[311878121,1705485043219,-500.0,0.00022191,2]
[311878122,1705485043228,-1762.09,0.00022191,2]
[311878123,1705485043237,-429.95876673,0.00022191,2]
[311878124,1705485043246,-500.0,0.00022191,2]
[311878125,1705485043254,-500.0,0.00022191,2]
[311878126,1705485043263,-2445.38,0.00022191,2]
[311878127,1705485043272,-559.19,0.00022191,2]
[311878128,1705485043281,-500.0,0.00022191,2]
[311878129,1705485043290,-500.0,0.00022191,2]
[311878130,1705485043298,-500.0,0.00022191,2]
[311878131,1705485043308,-500.0,0.00022191,2]
[311878132,1705485043317,-500.0,0.00022191,2]
[311878133,1705485043327,-3760.8,0.00022191,2]
[311878134,1705485043335,-528.42,0.00022191,2]
[311878135,1705485043344,-500.0,0.00022191,2]
[311878136,1705485043353,-610.97756718,0.00022191,2]
[311878137,1705485043362,-500.0,0.00022191,2]
[311878138,1705485043371,-500.0,0.00022191,2]
[311878139,1705485043379,-500.0,0.00022191,2]
[311878140,1705485043388,-971.68,0.00022191,2]
[311878141,1705485043397,-500.0,0.00022191,2]
[311878142,1705485043406,-500.0,0.00022191,2]
[311878143,1705485043414,-656.24,0.00022191,2]
[311878144,1705485043424,-500.0,0.00022191,2]
[311878145,1705485043433,-500.0,0.00022191,2]
[311878146,1705485043442,-500.0,0.00022191,2]
[311878147,1705485043451,-742.68,0.00022191,2]
[311878148,1705485043460,-500.0,0.00022191,2]
[311878149,1705485043469,-500.0,0.00022191,2]
[311878150,1705485043477,-500.0,0.00022191,2]
[311878151,1705485043486,-322.25229753,0.00022191,2]
[311878152,1705485043495,-2057.23,0.00022191,2]
[311878153,1705485043504,-505.24,0.00022191,2]
[311878154,1705485043513,-500.0,0.00022191,2]
[311878155,1705485043522,-500.0,0.00022191,2]
[311878156,1705485043531,-1833.31,0.00022191,2]
[311878157,1705485043540,-500.0,0.00022191,2]
[311878158,1705485043548,-541.56,0.00022191,2]
[311878159,1705485043558,-3243.09,0.00022191,2]
[311878161,1705485043567,-500.0,0.00022191,2]
[311878162,1705485043576,-500.0,0.00022191,2]
[311878164,1705485043585,-500.0,0.00022191,2]
[311878166,1705485043594,-863.96,0.00022191,2]
[311878168,1705485043603,-500.0,0.00022191,2]
[311878170,1705485043612,-2826.75,0.00022191,2]
[311878172,1705485043621,-500.0,0.00022191,2]
[311878174,1705485043630,-500.0,0.00022191,2]
[311878176,1705485043639,-500.0,0.00022191,2]
[311878178,1705485043648,-500.0,0.00022191,2]
[311878180,1705485043658,-500.0,0.00022191,2]
[311878182,1705485043666,-500.0,0.00022191,2]
[311878184,1705485043677,-509.07,0.00022191,2]
[311878186,1705485043686,-500.0,0.00022191,2]
[311878187,1705485043695,-500.0,0.00022191,2]
[311878189,1705485043705,-344.85757155,0.00022191,2]
[311878191,1705485043716,-543.29,0.00022191,2]
[311878193,1705485043725,-31925.53,0.00022191,2]
[311878195,1705485043734,-6023.82,0.00022191,2]
[311878204,1705485043802,-500.0,0.00022191,2]
[311878206,1705485043812,-451.09078181,0.00022191,2]
[311878208,1705485043821,-500.0,0.00022191,2]
[311878210,1705485043830,-500.0,0.00022191,2]
[311878212,1705485043839,-815.96,0.00022191,2]
[311878214,1705485043848,-500.0,0.00022191,2]
[311878216,1705485043857,-906.59,0.00022191,2]
[311878217,1705485043870,-500.0,0.00022191,2]
[311878219,1705485043880,-500.0,0.00022191,2]
[311878221,1705485043889,-500.0,0.00022191,2]
[311878223,1705485043898,-500.0,0.00022191,2]
[311878225,1705485043908,-500.0,0.00022191,2]
[311878228,1705485043922,-17270.7,0.00022191,2]
[311878229,1705485043931,-500.0,0.00022191,2]
[311878231,1705485043941,-2817.83,0.00022191,2]
[311878233,1705485043950,-500.0,0.00022191,2]
[311878235,1705485043960,-2814.25,0.00022191,2]
[311878237,1705485043969,-500.0,0.00022191,2]
[311878239,1705485043980,-500.0,0.00022191,2]
[311878241,1705485043991,-500.0,0.00022191,2]
[311878244,1705485044009,-2147.25,0.00022191,2]
[311878247,1705485044023,-500.0,0.00022191,2]
[311878249,1705485044034,-500.0,0.00022191,2]
[311878251,1705485044043,-1609.78,0.00022191,2]
[311878253,1705485044055,-500.0,0.00022191,2]
[311878255,1705485044064,-500.0,0.00022191,2]
[311878257,1705485044074,-7434.55,0.00022191,2]
[311878259,1705485044084,-500.0,0.00022191,2]
[311878261,1705485044095,-500.0,0.00022191,2]
[311878263,1705485044105,-500.0,0.00022191,2]
[311878266,1705485044115,-878.72,0.00022191,2]
[311878267,1705485044132,-500.0,0.00022191,2]
[311878270,1705485044142,-935.18,0.00022191,2]
[311878272,1705485044152,-500.0,0.00022191,2]
[311878274,1705485044161,-465.35602054,0.00022191,2]
[311878276,1705485044172,-500.0,0.00022191,2]
[311878278,1705485044182,-1146.15,0.00022191,2]
[311878280,1705485044192,-600.88725899,0.00022191,2]
[311878282,1705485044202,-500.0,0.00022191,2]
[311878284,1705485044212,-1687.05,0.00022191,2]
[311878286,1705485044221,-1362.08,0.00022191,2]
[311878288,1705485044233,-500.0,0.00022191,2]
[311878290,1705485044242,-849.36,0.00022191,2]
[311878292,1705485044252,-500.0,0.00022191,2]
[311878294,1705485044261,-500.0,0.00022191,2]
[311878296,1705485044271,-500.0,0.00022191,2]
[311878298,1705485044280,-201.66657356,0.00022191,2]
[311878300,1705485044290,-500.0,0.00022191,2]
[311878302,1705485044299,-1883.47,0.00022191,2]
[311878304,1705485044309,-7245.67,0.00022191,2]
[311878306,1705485044319,-500.0,0.00022191,2]
[311878308,1705485044329,-500.0,0.00022191,2]
[311878310,1705485044339,-1325.06,0.00022191,2]
[311878312,1705485044348,-9421.15,0.00022191,2]
[311878314,1705485044358,-687.07152181,0.00022326,2]
[311878316,1705485044367,-1129.29306651,0.00022326,2]
[311878318,1705485044376,-155.0,0.00022327,2]
[311878320,1705485044386,-500.0,0.00022328,2]
[311878322,1705485044396,-500.0,0.00022328,2]
[311878324,1705485044405,-551.41,0.00022328,2]
[311878326,1705485044415,-383.96915112,0.00022328,2]
[311878328,1705485044425,-322.14233015,0.00022328,2]
[311878330,1705485044434,-375.08228626,0.00022328,2]
[311878332,1705485044444,-708.1,0.00022328,2]
[311878334,1705485044453,-500.0,0.00022328,2]
[311878337,1705485044463,-500.0,0.00022328,2]
[311878339,1705485044472,-421.13330795,0.00022328,2]
[311878341,1705485044482,-780.54,0.00022328,2]
[311878343,1705485044491,-601.37,0.00022328,2]
[311878344,1705485044501,-604.88,0.00022328,2]
[311878346,1705485044510,-500.0,0.00022328,2]
[311878349,1705485044520,-547.01,0.00022328,2]
[311878351,1705485044530,-500.0,0.00022328,2]
[311878353,1705485044539,-500.0,0.00022328,2]
[311878355,1705485044549,-500.0,0.00022328,2]